bitfinex/quotes_ETHUSD_20240928
["timestamp","ask_amount","ask_price","bid_price","bid_amount"]
[1727517127738,2.37812863,2673.6,2673.3,3.74061]
[1727517127942,0.7849744,2673.4,2673.3,6.7406]
[1727517128251,0.78474719,2673.4,2673.3,6.7406]
[1727517129043,1.98504527,2673.6,2673.4,3.74055]
[1727517129044,1.17744527,2673.5,2673.4,3.74055]
[1727517129767,1.98504527,2673.6,2673.5,3.74041]
[1727517131985,1.98504527,2673.6,2673.4,3.74047]
[1727517132397,0.78408859,2673.5,2673.4,3.74047]
[1727517132599,0.89804915,2673.5,2673.4,3.74047]
[1727517133203,0.11396056,2673.5,2673.4,3.74047]
[1727517140610,0.89804915,2673.5,2673.4,3.74047]
[1727517141118,0.11396056,2673.5,2673.4,3.74047]
[1727517141414,0.89778552,2673.5,2673.4,3.74047]
[1727517145619,0.11396056,2673.5,2673.4,3.74047]
[1727517147729,1.29140583,2673.5,2673.4,3.74047]
[1727517148087,2.25199187,2673.5,2672.4,0.83550291]
[1727517148401,2.25199187,2673.5,2672.9,3.74117]
[1727517148402,0.78398487,2673.0,2672.9,3.74117]
[1727517148600,0.10954215,2673.0,2672.9,3.74117]
[1727517149196,1.41538501,2673.0,2672.7,3.74144]
[1727517149401,2.35849227,2672.8,2672.7,3.74144]
[1727517149598,1.68374203,2672.8,2672.5,3.74171]
[1727517149928,0.7840646,2672.7,2672.5,3.74171]
[1727517150224,2.46751085,2672.6,2672.3,3.74199]
[1727517150587,0.7840646,2672.5,2672.3,7.48399]
[1727517150821,0.10869975,2672.4,2672.3,3.74205]
[1727517152698,2.35855462,2672.6,2672.3,3.74205]
[1727517152906,0.10869413,2672.4,2672.3,3.74205]
[1727517153104,3.32198647,2672.6,2672.3,3.74205]
[1727517153305,0.10869413,2672.4,2672.3,3.74205]
[1727517153505,3.32198647,2672.6,2672.3,3.74205]
[1727517153705,0.10869413,2672.4,2672.3,3.74205]
[1727517153945,3.32198647,2672.6,2672.3,3.74205]
[1727517154231,3.32198647,2672.6,2672.3,3.74209]
[1727517154405,0.10872674,2672.5,2672.4,3.7419]
[1727517155004,0.10872674,2672.5,2672.3,3.74209]
[1727517155696,0.10872674,2672.5,2672.2,3.7422]
[1727517155897,0.10872674,2672.5,2672.4,3.74195]
[1727517156128,0.10872674,2672.5,2672.3,7.48401]
[1727517156429,0.10872674,2672.5,2672.3,3.74199]
[1727517156853,0.10872674,2672.5,2672.4,3.74195]
[1727517159813,0.10872674,2672.5,2672.4,4.55625]
[1727517160044,8.9424646,2673.1,2672.6,3.74157]
[1727517160197,8.9424646,2673.1,2672.8,3.74137]
[1727517160402,1.37663507,2673.0,2672.8,3.74137]
[1727517162625,2.16069967,2673.0,2672.7,3.74139]
[1727517162835,1.37663507,2673.0,2672.7,3.74139]
[1727517163339,2.16069967,2673.0,2672.7,3.74139]
[1727517164211,2.16069967,2673.0,2672.5,3.74172]
[1727517164535,0.7840646,2672.9,2672.5,3.74172]
[1727517164840,0.10852392,2672.8,2672.6,3.74159]
[1727517165432,0.10849131,2672.7,2672.6,3.74159]
[1727517165843,0.7840646,2672.9,2672.6,3.74159]
[1727517166001,0.10849131,2672.7,2672.6,3.74159]
[1727517166197,0.7840646,2672.9,2672.6,3.74159]
[1727517166402,0.10852392,2672.8,2672.6,3.74159]
[1727517171333,0.89258852,2672.8,2672.6,3.74159]
[1727517172052,0.10852392,2672.8,2672.5,3.74172]
[1727517172339,0.89258852,2672.8,2672.7,3.74153]
[1727517172548,0.10852392,2672.8,2672.7,3.74153]
[1727517173611,0.89258852,2672.8,2672.7,3.74153]
[1727517173846,0.10852392,2672.8,2672.7,3.74153]
[1727517175921,0.50005097,2672.8,2672.7,3.74153]
[1727517176117,1.28411557,2672.8,2672.7,3.74153]
[1727517176336,1.28411557,2672.8,2672.6,3.74159]
[1727517176657,1.28411557,2672.8,2672.6,7.48317]
[1727517177258,1.28411557,2672.8,2672.6,3.74158]
[1727517180061,1.28411557,2672.8,2672.6,7.48318]
[1727517180259,1.28411557,2672.8,2672.6,3.74158]
[1727517181329,0.7840646,2672.7,2672.6,3.74158]
[1727517181523,0.89261778,2672.7,2672.6,3.74158]
[1727517181726,0.10855318,2672.7,2672.6,3.74158]
[1727517181961,1.17559165,2672.8,2672.7,4.56653]
[1727517182152,0.7840646,2672.9,2672.8,3.74139]
[1727517184131,1.17744527,2673.0,2672.8,3.74139]
[1727517184564,0.78410539,2672.9,2672.7,4.56644]
[1727517184769,0.78410539,2672.9,2672.4,3.0]
[1727517184770,0.78411321,2672.8,2672.4,3.825]
[1727517184931,1.54821321,2672.6,2672.2,4.5672]
[1727517185132,0.78411321,2672.5,2672.2,4.5672]
[1727517185358,0.78411321,2672.4,2672.2,4.5672]
[1727517185735,0.1084396,2672.3,2672.2,4.5672]
[1727517189631,0.1084396,2672.3,2672.2,5.398155]
[1727517189976,0.1084396,2672.3,2672.2,8.398155]
[1727517190562,0.78411321,2672.5,2672.4,3.74195]
[1727517190767,0.78411321,2672.6,2672.5,3.74181]
[1727517191179,1.17744527,2672.6,2672.5,3.74181]
[1727517193287,1.57052863,2672.7,2672.5,3.74181]
[1727517193439,1.17871354,2672.6,2672.5,3.74181]
[1727517194153,2.89816092,2672.6,2672.5,3.74181]
[1727517194353,1.32762678,2672.6,2672.5,3.74181]
[1727517194674,1.28745507,2672.6,2672.5,3.74181]
[1727517195175,1.32763424,2672.6,2672.5,3.74181]
[1727517195339,1.28752594,2672.6,2672.5,3.74181]
[1727517195543,1.32769335,2672.6,2672.5,3.74181]
[1727517198389,1.28760397,2672.6,2672.5,4.946891]
[1727517200504,1.28760397,2672.6,2672.5,3.74181]
[1727517200849,0.89455162,2672.6,2672.5,7.55691]
[1727517201178,0.10831805,2672.6,2672.5,7.55691]
[1727517202191,0.8945415,2672.6,2672.5,9.20622949]
[1727517202389,0.10831805,2672.6,2672.5,10.95787197]
[1727517202744,1.17928592,2672.9,2672.7,3.74153]
[1727517203042,1.17928592,2672.9,2672.8,6.74139]
[1727517203557,1.57052863,2673.0,2672.8,6.74139]
[1727517203757,1.17913621,2672.9,2672.8,6.74139]
[1727517203963,1.57052863,2673.0,2672.9,7.55455]
[1727517204177,1.17909017,2673.0,2672.9,7.55455]
[1727517204654,1.28714972,2673.0,2672.9,7.55455]
[1727517206158,1.28714972,2673.0,2672.9,9.12904002]
[1727517206356,0.10805955,2673.0,2672.9,10.52904642]
[1727517206771,1.17909017,2673.5,2673.3,3.8133]
[1727517206971,0.78555972,2673.4,2673.3,9.12848002]
[1727517207148,0.78555972,2673.6,2673.5,0.8133]
[1727517207354,0.78555972,2673.7,2673.6,3.74027]
[1727517207756,0.78555972,2673.7,2673.6,6.74027]
[1727517208359,0.10497093,2673.7,2673.6,6.74027]
[1727517208561,0.78555972,2673.8,2673.7,3.74013]
[1727517208966,1.17909017,2673.9,2673.7,3.74013]
[1727517209167,1.17909017,2673.9,2673.8,3.73999]
[1727517210310,0.8165,2674.0,2673.9,3.73985]
[1727517210466,1.99225782,2674.0,2673.9,3.73985]
[1727517211852,2.0973265,2674.0,2673.9,3.73985]
[1727517212487,0.92156868,2674.0,2673.9,3.73985]
[1727517212685,2.0973265,2674.0,2673.9,3.73985]
[1727517212993,1.70492326,2674.0,2673.9,3.73985]
[1727517213166,0.7758,2673.9,2673.7,3.74006]
[1727517213366,0.78328926,2673.8,2673.7,3.74006]
[1727517213564,0.88829277,2673.8,2673.7,3.74006]
[1727517218385,0.10500351,2673.8,2673.7,3.74006]
[1727517220749,1.55908926,2674.1,2673.8,3.73998]
[1727517221034,0.78328926,2674.1,2674.0,3.73971]
[1727517221393,0.78328926,2674.2,2674.1,3.73957]
[1727517221605,1.37121066,2674.2,2674.1,3.73957]
[1727517221806,1.37043192,2674.2,2674.1,3.73957]
[1727517222224,0.5879214,2674.2,2674.1,3.73957]
[1727517222615,1.37032946,2674.2,2674.1,3.73957]
[1727517222807,1.37033328,2674.2,2674.1,3.73957]
[1727517223005,1.95090605,2674.3,2674.1,3.73957]
[1727517223193,0.78242038,2674.2,2674.1,3.73957]
[1727517223735,1.55822038,2674.3,2674.2,3.73943]
[1727517224105,0.78242038,2674.4,2674.3,3.73929]
[1727517225129,0.88496031,2674.4,2674.3,3.73929]
[1727517225331,0.10253993,2674.4,2674.3,3.73929]
[1727517227791,0.78242038,2674.6,2674.3,3.73929]
[1727517228317,0.10268718,2674.5,2674.3,3.73929]
[1727517230306,0.10268718,2674.5,2674.2,3.73942]
[1727517230538,0.10268718,2674.5,2674.2,7.47884]
[1727517230951,0.10268718,2674.5,2674.3,3.73928]
[1727517232251,0.10268718,2674.5,2674.1,3.73957]
[1727517232252,0.7758,2674.4,2674.1,3.73957]
[1727517232565,0.10292219,2674.3,2674.2,3.73942]
[1727517234708,0.10292219,2674.3,2674.2,4.50172]
[1727517234908,0.78242038,2674.7,2674.2,4.50172]
[1727517235144,0.78242038,2674.7,2674.4,3.73904]
[1727517235346,0.78242038,2674.7,2674.4,7.47811]
[1727517235532,0.78242038,2674.7,2674.4,3.73904]
[1727517235748,0.78242038,2674.7,2674.5,3.73901]
[1727517235944,0.78242038,2674.7,2674.4,3.73904]
[1727517236756,0.78242038,2674.7,2674.5,3.73899]
[1727517236945,0.78242038,2674.7,2674.4,7.47811]
[1727517237254,0.78242038,2674.7,2674.4,3.73904]
[1727517237456,0.78242038,2674.7,2674.4,7.47811]
[1727517237923,0.78242038,2674.7,2674.4,3.73904]
[1727517238135,0.78242038,2674.8,2674.2,1.33244056]
[1727517238449,1.61082038,2674.9,2674.6,3.73879]
[1727517240071,0.78242038,2674.8,2674.6,3.73879]
[1727517240276,1.61082038,2674.9,2674.6,7.47759]
[1727517240573,1.61082038,2674.9,2674.6,3.73879]
[1727517240782,0.78242038,2674.8,2674.6,3.73879]
[1727517240940,1.61082038,2674.9,2674.6,7.47757]
[1727517241144,1.61082038,2674.9,2674.6,3.73878]
[1727517241344,1.61082038,2674.9,2674.7,3.73864]
[1727517241979,0.78242038,2674.8,2674.7,3.73864]
[1727517242194,1.61082038,2674.9,2674.7,3.73864]
[1727517242489,0.78242038,2674.9,2674.7,4.112504]
[1727517242645,0.78242038,2674.9,2674.7,3.73864]
[1727517242994,0.78242038,2674.9,2674.7,7.47729]
[1727517243151,0.78242038,2674.9,2674.7,3.73864]
[1727517243768,0.78242038,2674.9,2674.7,7.47729]
[1727517244066,0.78242038,2674.8,2674.7,3.73864]
[1727517244545,0.78242038,2674.9,2674.7,3.73864]
[1727517244944,0.78242038,2674.9,2674.8,3.73859]
[1727517245148,0.78242038,2674.9,2674.7,3.73871]
[1727517245444,1.17510605,2675.0,2674.7,3.73871]
[1727517245445,0.78242038,2674.8,2674.7,3.73871]
[1727517245651,0.78242038,2674.9,2674.8,3.73859]
[1727517246700,0.78242038,2675.0,2674.9,3.73845]
[1727517250078,0.78242038,2675.1,2675.0,3.73831]
[1727517250273,0.78242038,2675.1,2675.0,4.562216]
[1727517250481,0.88245776,2675.1,2674.9,3.73845]
[1727517251079,0.88245776,2675.1,2675.0,3.73831]
[1727517252322,2.10354343,2675.1,2674.9,3.73844]
[1727517252517,0.78304879,2675.0,2674.8,7.47703]
[1727517252722,0.78304908,2675.0,2674.8,3.73851]
[1727517252905,0.78304908,2675.0,2674.7,3.73872]
[1727517253090,0.78304908,2675.0,2674.9,3.73845]
[1727517254222,1.27524034,2675.0,2674.9,3.73845]
[1727517254817,0.10013429,2675.0,2674.9,3.73845]
[1727517255399,1.27524034,2675.0,2674.9,3.73845]
[1727517255599,0.10013429,2675.0,2674.9,3.73845]
[1727517255797,1.27524034,2675.0,2674.9,3.73845]
[1727517256008,0.88306154,2675.0,2674.9,3.73845]
[1727517256311,0.88305678,2675.0,2674.9,3.73845]
[1727517256788,0.8830395,2675.0,2674.9,3.73845]
[1727517257212,0.88303933,2675.0,2674.9,3.73845]
[1727517258003,0.8830308,2675.0,2674.9,3.73845]
[1727517259600,0.88308867,2675.0,2674.9,3.73845]
[1727517260122,0.10013429,2675.0,2674.9,3.73845]
[1727517260308,0.88308041,2675.0,2674.9,3.73845]
[1727517260625,0.10013429,2675.0,2674.9,3.73845]
[1727517260783,0.88315565,2675.0,2674.9,3.73845]
[1727517261120,0.88315858,2675.0,2674.9,3.73845]
[1727517261293,0.10013429,2675.0,2674.9,3.73845]
[1727517261830,1.27524034,2675.0,2674.9,3.73845]
[1727517262170,0.10013429,2675.0,2674.9,3.73845]
[1727517262338,1.27524034,2675.0,2674.9,3.73845]
[1727517265461,1.348102,2675.0,2674.9,3.73845]
[1727517265663,1.27572921,2675.0,2674.9,3.73845]
[1727517266346,0.10013429,2675.0,2674.9,3.73845]
[1727517267165,1.67066292,2675.0,2674.9,3.73845]
[1727517267470,2.91896456,2675.0,2674.9,3.73845]
[1727517267672,1.34843593,2675.0,2674.9,3.73845]
[1727517268037,2.91896456,2675.0,2674.9,3.73845]
[1727517268239,1.27618597,2675.0,2674.9,4.52955]
[1727517268466,1.67066292,2675.0,2674.9,4.52955]
[1727517268775,2.91914786,2675.0,2674.9,4.52955]
[1727517269273,1.34861923,2675.0,2674.9,4.52955]
[1727517269479,2.91914786,2675.0,2674.9,4.52955]
[1727517269853,1.34861923,2675.0,2674.9,4.52955]
[1727517270054,1.27657066,2675.0,2674.9,5.356364]
[1727517271250,0.10013429,2675.0,2674.9,5.356364]
[1727517271678,1.27657066,2675.0,2674.9,5.356364]
[1727517274367,0.10013429,2675.0,2674.9,5.356364]
[1727517274567,1.27687612,2675.0,2674.9,5.356364]
[1727517275569,1.27696433,2675.0,2674.9,5.356364]
[1727517275783,1.27697673,2675.0,2674.9,5.356364]
[1727517276091,2.92536306,2675.0,2674.9,5.356364]
[1727517276395,2.92536306,2675.0,2674.9,4.52955]
[1727517277060,1.35483443,2675.0,2674.9,4.52955]
[1727517278204,2.92536306,2675.0,2674.9,4.52955]
[1727517283359,1.35483443,2675.0,2674.9,4.52955]
[1727517284270,3.31738662,2675.0,2674.9,3.73845]
[1727517284769,3.31902468,2675.0,2674.9,3.73845]
[1727517286053,3.31926109,2675.0,2674.9,3.73845]
[1727517286219,1.35483443,2675.0,2674.9,3.73845]
[1727517286423,2.06455445,2675.0,2674.9,3.73845]
[1727517286728,3.31924956,2675.0,2674.9,3.73845]
[1727517287128,3.31924612,2675.0,2674.9,3.73845]
[1727517287462,1.35483443,2675.0,2674.9,3.73845]
[1727517287673,2.06469798,2675.0,2674.9,3.73845]
[1727517287965,1.35483443,2675.0,2674.9,3.73845]
[1727517288265,0.10013429,2675.0,2674.9,3.73845]
[1727517288494,1.35483443,2675.0,2674.9,3.73845]
[1727517288790,2.06480856,2675.0,2674.9,3.73845]
[1727517288957,1.35483443,2675.0,2674.9,3.73845]
[1727517289337,3.31947821,2675.0,2674.9,3.73845]
[1727517289589,1.35483443,2675.0,2674.9,3.73845]
[1727517289768,0.10013429,2675.0,2674.9,3.73845]
[1727517289960,3.31960345,2675.0,2674.9,3.73845]
[1727517290157,1.35483443,2675.0,2674.9,3.73845]
[1727517298256,1.35483443,2675.0,2674.9,9.86964402]
[1727517298461,0.10013429,2675.0,2674.9,10.17993903]
[1727517298698,0.10013429,2675.0,2674.9,9.86964402]
[1727517298997,0.78592157,2675.1,2675.0,7.54731]
[1727517299163,0.78592157,2675.2,2675.1,7.54717]
[1727517299359,0.78592157,2675.2,2675.1,9.19641199]
[1727517299577,0.1287617,2675.4,2675.3,7.54689]
[1727517299900,0.1287617,2675.4,2675.3,9.1961252]
[1727517300075,0.1287617,2675.4,2675.3,9.12138002]
[1727517300996,0.20620579,2675.4,2675.3,9.12138002]
[1727517301156,0.20620579,2675.4,2675.3,10.55027548]
[1727517302995,0.1287617,2675.4,2675.3,10.55027548]
[1727517303157,0.20626145,2675.4,2675.3,10.55027548]
[1727517303584,0.1287617,2675.4,2675.3,8.97578546]
[1727517304312,0.20672696,2675.4,2675.3,10.55027548]
[1727517305801,0.1287617,2675.4,2675.3,10.55027548]
[1727517311799,0.1287617,2675.4,2675.3,8.97578546]
[1727517312198,0.20681495,2675.4,2675.3,8.97578546]
[1727517312872,0.1287617,2675.4,2675.3,8.97578546]
[1727517313208,0.1287617,2675.4,2675.3,8.16678546]
[1727517313360,0.20681495,2675.4,2675.3,6.73789]
[1727517315403,0.20681495,2675.4,2675.3,9.12398002]
[1727517316462,0.20681495,2675.4,2675.3,5.38609002]
[1727517316662,0.20681495,2675.4,2675.3,5.46083274]
[1727517316872,0.20681495,2675.4,2675.3,10.11860801]
[1727517317058,0.20681495,2675.4,2675.3,10.04386529]
[1727517322885,0.1287617,2675.4,2675.3,10.04386529]
[1727517331215,0.78592157,2676.4,2676.2,3.73662]
[1727517331420,1.57184314,2676.7,2676.5,3.73622]
[1727517331421,0.78592157,2676.7,2676.5,3.73622]
[1727517331725,0.8657,2676.8,2676.7,3.73594]
[1727517331726,1.65162157,2676.8,2676.7,3.73594]
[1727517332230,1.71427563,2676.8,2676.7,3.73594]
[1727517332380,0.13735406,2676.8,2676.7,5.31043002]
[1727517332904,0.13735406,2676.8,2676.7,5.38513697]
[1727517333106,0.13735406,2676.8,2676.7,6.37841767]
[1727517333411,0.0747,2676.8,2676.7,9.37841767]
[1727517333651,0.0747,2676.8,2676.7,9.30371072]
[1727517334431,0.8991,2676.8,2676.7,6.73594]
[1727517335428,0.8991,2676.8,2676.6,3.736]
[1727517335629,0.96278024,2676.8,2676.7,3.73594]
[1727517335829,0.96278024,2676.8,2676.6,3.736]
[1727517336229,0.96278024,2676.8,2676.4,6.73628]
[1727517336436,1.29509942,2676.8,2676.5,3.73612]
[1727517336754,1.29509942,2676.8,2676.6,3.736]
[1727517336908,0.96278024,2676.8,2676.6,3.736]
[1727517337557,0.96278024,2676.8,2676.5,3.0]
[1727517338562,1.74870181,2676.8,2676.5,3.0]
[1727517338718,0.96278024,2676.8,2676.5,3.0]
[1727517339043,2.57246123,2676.8,2676.5,3.0]
[1727517339350,2.57246123,2676.8,2676.5,6.73611]
[1727517339640,1.78653966,2676.8,2676.5,6.73611]
[1727517339811,2.57246123,2676.8,2676.5,6.73611]
[1727517340013,0.8244,2676.7,2676.0,7.48]
[1727517340207,0.8244,2676.7,2676.3,3.73647]
[1727517340208,0.8244,2676.5,2676.3,3.73647]
[1727517340620,0.06321972,2676.4,2676.3,3.73647]
[1727517340849,0.06321972,2676.4,2676.2,3.73663]
[1727517341252,0.06321972,2676.4,2676.3,3.7365]
[1727517341549,0.06321972,2676.4,2676.2,3.73663]
[1727517341937,0.06321972,2676.4,2676.2,3.73656]
[1727517342338,0.06321972,2676.4,2676.3,3.7365]
[1727517343956,1.61032157,2676.7,2676.6,3.73608]
[1727517344557,2.00328235,2676.7,2676.6,3.73608]
[1727517344721,0.8244,2676.7,2676.6,3.73608]
[1727517345058,1.60699858,2676.7,2676.5,3.73613]
[1727517345455,1.60699858,2676.7,2676.6,3.73608]
[1727517345753,0.8244,2676.7,2676.6,3.73608]
[1727517345960,0.85729858,2676.8,2676.6,3.73608]
[1727517346261,0.0747,2676.8,2676.7,3.73594]
[1727517347443,0.13799662,2676.8,2676.7,3.73594]
[1727517348719,0.5291427,2676.8,2676.7,3.73594]
[1727517350666,0.5291427,2676.8,2676.7,6.81065065]
[1727517351565,0.5291427,2676.8,2676.7,7.37621755]
[1727517357374,0.46584608,2676.8,2676.7,7.37621755]
[1727517357557,0.52955824,2676.8,2676.7,7.37621755]
[1727517359342,0.52955824,2676.8,2676.7,6.73594]
[1727517361239,0.52955824,2676.8,2676.4,3.73629]
[1727517361571,1.57603164,2676.7,2676.4,3.0]
[1727517361784,0.78253164,2676.6,2676.4,3.0]
[1727517361941,0.84617311,2676.6,2676.4,3.0]
[1727517362143,0.84617311,2676.6,2676.3,3.0]
[1727517362444,0.84617311,2676.6,2676.3,6.73649]
[1727517363035,0.84617311,2676.6,2676.4,3.73634]
[1727517364153,0.84617311,2676.6,2676.3,6.73649]
[1727517364477,0.06364147,2676.6,2676.4,3.73636]
[1727517364677,0.06364147,2676.6,2676.5,3.73622]
[1727517365384,0.06364147,2676.6,2676.5,4.483478]
[1727517365882,0.85723164,2676.8,2676.7,3.73594]
[1727517366177,0.85723164,2676.8,2676.5,3.73622]
[1727517366475,0.78253164,2676.7,2676.6,3.73607]
[1727517367784,0.84304187,2676.7,2676.6,3.73607]
[1727517367987,0.06051023,2676.7,2676.6,8.261198]
[1727517368282,0.85723164,2676.8,2676.7,3.73594]
[1727517368283,0.0747,2676.8,2676.7,3.73594]
[1727517368496,0.0747,2676.8,2676.7,8.46642022]
[1727517374295,0.0747,2676.8,2676.7,9.25712022]
[1727517375597,0.0747,2676.8,2676.7,6.73594]
[1727517376162,0.85861526,2676.8,2676.7,6.73594]
[1727517376360,1.25358235,2676.8,2676.7,6.73594]
[1727517376568,1.31010706,2676.8,2676.7,6.73594]
[1727517376771,1.25110512,2676.8,2676.7,6.73594]
[1727517378209,2.08452292,2676.8,2676.7,6.73594]
[1727517378412,3.65636606,2676.8,2676.7,6.73594]
[1727517379077,3.71357522,2676.8,2676.7,6.73594]
[1727517379273,3.71357522,2676.8,2676.7,3.73594]
[1727517379674,4.1023607,2676.8,2676.5,3.73621]
[1727517379875,1.1765891,2676.6,2676.5,3.73621]
[1727517380082,2.86164838,2676.7,2676.5,3.73621]
[1727517380378,1.23375121,2676.6,2676.5,3.73621]
[1727517381589,0.05711004,2676.6,2676.5,3.73621]
[1727517381908,1.23375121,2676.6,2676.5,3.73621]
[1727517383315,0.05711004,2676.6,2676.5,3.73621]
[1727517383670,1.23375121,2676.6,2676.5,3.73621]
[1727517385311,1.23375121,2676.6,2676.5,3.69121]
[1727517387623,1.62492032,2676.6,2676.5,3.69121]
[1727517388459,1.68393465,2676.6,2676.5,3.69121]
[1727517389326,4.46648147,2676.6,2676.5,3.69121]
[1727517389636,4.92059962,2676.6,2676.4,3.73634]
[1727517389840,2.80520599,2676.5,2676.4,6.73634]
[1727517390076,2.86017165,2676.5,2676.4,6.73634]
[1727517391088,2.86017165,2676.5,2676.4,3.0]
[1727517391408,0.8213,2676.4,2676.0,3.73685]
[1727517391588,1.56976045,2676.1,2676.0,3.73685]
[1727517391900,1.29029782,2676.1,2676.0,3.73685]
[1727517392100,0.05464232,2676.1,2676.0,3.73685]
[1727517392401,1.62400248,2676.1,2676.0,3.73685]
[1727517392581,2.85965798,2676.1,2676.0,6.73685]
[1727517393499,1.23126791,2676.1,2676.0,6.73685]
[1727517394875,1.23126791,2676.1,2676.0,3.0]
[1727517394876,0.83924232,2676.1,2676.0,3.0]
[1727517395063,0.83924232,2676.1,2675.9,3.73692]
[1727517395064,2.96891149,2676.1,2675.9,3.73692]
[1727517395263,2.96891149,2676.1,2675.7,6.73724]
[1727517395264,1.23421218,2676.0,2675.7,6.73724]
[1727517395506,0.78413341,2675.8,2675.7,6.73724]
[1727517396003,0.83823253,2675.8,2675.7,6.73724]
[1727517397268,0.05409912,2675.8,2675.7,6.73724]
[1727517397740,1.96080012,2676.1,2675.8,3.7372]
[1727517397741,0.78413341,2675.9,2675.8,3.7372]
[1727517398042,0.78413341,2676.0,2675.8,3.7372]
[1727517398208,0.78413341,2676.0,2675.9,3.73706]
[1727517398404,1.96080012,2676.1,2675.9,3.73706]
[1727517398636,1.17620012,2676.0,2675.8,3.7371]
[1727517398839,0.78346488,2675.9,2675.8,3.7371]
[1727517401321,0.78346488,2676.0,2675.9,3.73706]
[1727517401650,0.7831195,2676.0,2675.7,7.47445]
[1727517401947,0.78312098,2675.9,2675.8,3.73719]
[1727517402109,0.78312098,2676.0,2675.9,3.73706]
[1727517402420,0.78310151,2676.0,2675.9,3.73706]
[1727517405370,0.83734431,2676.0,2675.9,3.73706]
[1727517405557,0.0542428,2676.0,2675.9,3.73706]
[1727517408167,0.83734431,2676.0,2675.9,3.73706]
[1727517408336,0.0542428,2676.0,2675.9,3.73706]
[1727517409476,0.83734431,2676.0,2675.8,7.47419]
[1727517409646,0.83734431,2676.0,2675.9,3.73706]
[1727517410937,0.83734431,2676.0,2675.8,7.4742]
[1727517411382,0.83734431,2676.0,2675.9,3.73706]
[1727517412703,0.83734431,2676.0,2675.8,3.73708]
[1727517412878,0.83734431,2676.0,2675.9,3.73706]
[1727517413202,0.83734431,2676.0,2675.8,3.73708]
[1727517413372,0.83734431,2676.0,2675.8,7.47421]
[1727517413571,0.83734431,2676.0,2675.8,3.73708]
[1727517413883,0.83734431,2676.0,2675.8,7.47419]
[1727517414086,0.83734431,2676.0,2675.8,3.73708]
[1727517414287,0.0542428,2676.0,2675.9,3.73706]
[1727517414465,0.83734431,2676.0,2675.9,3.73706]
[1727517415775,0.83734431,2676.0,2675.8,3.73718]
[1727517416667,0.83734431,2676.0,2675.8,7.4743]
[1727517417983,0.83734431,2676.0,2675.8,3.73712]
[1727517418180,0.83734431,2676.0,2675.8,7.47423]
[1727517418385,0.83734431,2676.0,2675.8,3.73711]
[1727517419992,2.40957601,2676.0,2675.8,3.73711]
[1727517420225,0.78310151,2675.9,2675.6,3.73735]
[1727517420609,0.05017506,2675.8,2675.6,3.73735]
[1727517420797,0.83327657,2675.8,2675.7,3.73733]
[1727517421003,0.05017506,2675.8,2675.7,3.73733]
[1727517421398,0.83327657,2675.8,2675.7,3.73733]
[1727517421623,0.05017506,2675.8,2675.7,4.567638]
[1727517425044,0.05017506,2675.8,2675.7,3.940837]
[1727517425424,0.83327657,2675.8,2675.7,3.940837]
[1727517426863,0.83327657,2675.8,2675.7,4.0155766]
[1727517427150,0.83327657,2675.8,2675.7,4.769737]
[1727517427151,0.05017506,2675.8,2675.7,4.769737]
[1727517427351,0.78310151,2676.0,2675.9,3.73706]
[1727517427513,0.83336116,2676.0,2675.9,3.73706]
[1727517427752,0.05025965,2676.0,2675.9,3.73706]
[1727517428177,1.22645977,2676.0,2675.8,3.73712]
[1727517428349,1.22645977,2676.0,2675.9,3.73706]
[1727517428350,0.83412465,2676.0,2675.9,3.73706]
[1727517428551,1.22645977,2676.0,2675.9,3.73706]
[1727517429891,0.05025965,2676.0,2675.9,3.73706]
[1727517430266,0.83437681,2676.0,2675.9,3.73706]
[1727517430599,1.22645977,2676.0,2675.9,3.73706]
[1727517431417,1.22645977,2676.0,2675.8,3.73712]
[1727517431622,1.17620012,2675.9,2675.8,3.73712]
[1727517431908,1.56936016,2675.9,2675.7,3.7373]
[1727517432092,1.17679742,2675.8,2675.7,3.7373]
[1727517432407,1.22707165,2675.8,2675.7,3.7373]
[1727517434521,1.28494759,2675.8,2675.7,3.7373]
[1727517434814,1.22814292,2675.8,2675.7,4.867659]
[1727517435612,0.05027423,2675.8,2675.7,4.867659]
[1727517435985,1.22847088,2675.8,2675.7,4.867659]
[1727517436188,1.2852975,2675.8,2675.7,4.867659]
[1727517436597,1.61963439,2675.8,2675.7,4.867659]
[1727517436778,2.85465766,2675.8,2675.7,4.867659]
[1727517441805,3.62645766,2675.8,2675.7,3.7373]
[1727517442012,4.02164396,2675.8,2675.7,3.7373]
[1727517442687,2.0570975,2675.8,2675.7,3.7373]
[1727517442912,2.78708159,2675.8,2675.7,3.7373]
[1727517443119,4.02210486,2675.8,2675.7,3.7373]
[1727517443916,4.0220899,2675.8,2675.7,3.7373]
[1727517446835,2.0570975,2675.8,2675.7,3.7373]
[1727517447426,2.78688152,2675.8,2675.7,3.7373]
[1727517447638,4.02190479,2675.8,2675.7,3.7373]
[1727517447812,4.02188062,2675.8,2675.7,3.7373]
[1727517452607,4.02172178,2675.8,2675.7,3.7373]
[1727517453046,3.24992178,2675.8,2675.7,3.7373]
[1727517453251,1.2852975,2675.8,2675.7,3.7373]
[1727517453447,1.62190729,2675.8,2675.7,3.7373]
[1727517453946,2.85693056,2675.8,2675.7,3.7373]
[1727517456115,2.85693056,2675.8,2675.7,4.861539]
[1727517458553,1.22888521,2675.8,2675.7,8.629239]
[1727517459526,1.22888521,2675.8,2675.7,7.861539]
[1727517459716,1.22886936,2675.8,2675.7,6.7373]
[1727517460050,0.05027423,2675.8,2675.7,6.7373]
[1727517460251,1.28440803,2675.8,2675.7,6.7373]
[1727517460967,1.28440803,2675.8,2675.7,3.7373]
[1727517461140,3.24882662,2675.8,2675.7,3.7373]
[1727517462017,4.04357268,2675.8,2675.7,3.7373]
[1727517462235,4.04360716,2675.8,2675.7,3.7373]
[1727517462420,4.81270716,2675.8,2675.5,3.73748]
[1727517462729,2.73355307,2675.6,2675.4,3.73774]
[1727517462927,2.73355307,2675.6,2675.5,3.73761]
[1727517463132,3.96728235,2675.6,2675.5,3.73761]
[1727517466360,4.01729042,2675.6,2675.5,3.73761]
[1727517466517,4.48286885,2675.6,2675.5,3.73761]
[1727517468568,2.51841578,2675.6,2675.3,3.73789]
[1727517468738,2.73246476,2675.4,2675.3,3.73789]
[1727517468959,2.00282928,2675.4,2675.3,3.73789]